[Event "Titled Tuesday Blitz February 07 Early 2023"]
[White "So, Wesley"]
[Black "Daneshvar, Bardiya"]
[WhiteFideId "5202213"]
[BlackFideId "12576468"]
[WhiteElo "2760"]
[BlackElo "2540"]
[Result "1-0"]
[Round "10"]
[TimeControl "180+2"]
[Date "2023.02.07"]
[WhiteClock "0:00:58"]
[BlackClock "0:00:07"]

1. e4 {[%clk 0:03:00]}  c6 {[%clk 0:03:00]} 2. d4 {[%clk 0:03:00]}  d5 {[%clk 0:03:00]} 3. exd5 {[%clk 0:03:00]}  cxd5 {[%clk 0:03:00]} 4. Bd3 {[%clk 0:03:00]}  Nf6 {[%clk 0:03:01]} 5. c3 {[%clk 0:02:58]}  Bg4 {[%clk 0:03:01]} 6. Qb3 {[%clk 0:02:59]}  Qc7 {[%clk 0:03:02]} 7. h3 {[%clk 0:03:00]}  Bd7 {[%clk 0:03:02]} 8. Nf3 {[%clk 0:02:57]}  e6 {[%clk 0:03:01]} 9. O-O {[%clk 0:02:45]}  Bd6 {[%clk 0:03:01]} 10. Re1 {[%clk 0:02:45]}  Nc6 {[%clk 0:03:01]} 11. Nbd2 {[%clk 0:02:41]}  O-O {[%clk 0:02:54]} 12. Nf1 {[%clk 0:02:37]}  Rab8 {[%clk 0:02:48]} 13. Bg5 {[%clk 0:02:32]}  Nh5 {[%clk 0:02:41]} 14. g3 {[%clk 0:02:24]}  b5 {[%clk 0:02:30]} 15. a3 {[%clk 0:02:14]}  a5 {[%clk 0:02:22]} 16. Rac1 {[%clk 0:02:01]}  Rfe8 {[%clk 0:01:59]} 17. Qd1 {[%clk 0:01:44]}  Bf8 {[%clk 0:01:50]} 18. Ne5 {[%clk 0:01:38]}  Nxe5 {[%clk 0:01:40]} 19. Bxh7+ {[%clk 0:01:28]}  Kxh7 {[%clk 0:01:38]} 20. Qxh5+ {[%clk 0:01:29]}  Kg8 {[%clk 0:01:39]} 21. dxe5 {[%clk 0:01:29]}  Qc4 {[%clk 0:01:24]} 22. Rcd1 {[%clk 0:01:24]}  g6 {[%clk 0:01:01]} 23. Qf3 {[%clk 0:01:18]}  b4 {[%clk 0:01:01]} 24. Ne3 {[%clk 0:01:16]}  Qc6 {[%clk 0:00:54]} 25. Ng4 {[%clk 0:01:14]}  bxa3 {[%clk 0:00:40]} 26. Nf6+ {[%clk 0:01:14]}  Kg7 {[%clk 0:00:41]} 27. Rd4 {[%clk 0:01:08]}  Bc5 {[%clk 0:00:16]} 28. Nxe8+ {[%clk 0:01:06]}  Kf8 {[%clk 0:00:07]} 29. Nd6 {[%clk 0:00:58]} 1-0


[Site "https://www.chess.com"]

[Event "Titled Tuesday Blitz February 07 Early 2023"]
[White "Keymer, Vincent"]
[Black "Urazayev, Arystanbek"]
[WhiteFideId "12940690"]
[BlackFideId "13709810"]
[WhiteElo "2700"]
[BlackElo "2460"]
[Result "0-1"]
[Round "10"]
[TimeControl "180+2"]
[Date "2023.02.07"]
[WhiteClock "0:00:24"]
[BlackClock "0:00:10"]

1. Nf3 {[%clk 0:03:00]}  d5 {[%clk 0:03:00]} 2. e3 {[%clk 0:03:01]}  Nf6 {[%clk 0:03:00]} 3. c4 {[%clk 0:03:01]}  e6 {[%clk 0:03:00]} 4. Nc3 {[%clk 0:03:02]}  a6 {[%clk 0:02:56]} 5. b3 {[%clk 0:03:01]}  b6 {[%clk 0:02:56]} 6. cxd5 {[%clk 0:02:59]}  exd5 {[%clk 0:02:56]} 7. g3 {[%clk 0:02:59]}  Bb7 {[%clk 0:02:56]} 8. Bg2 {[%clk 0:03:00]}  Bd6 {[%clk 0:02:57]} 9. O-O {[%clk 0:03:00]}  O-O {[%clk 0:02:58]} 10. Bb2 {[%clk 0:03:00]}  Nbd7 {[%clk 0:02:58]} 11. Rc1 {[%clk 0:03:01]}  Re8 {[%clk 0:02:58]} 12. Re1 {[%clk 0:03:02]}  h6 {[%clk 0:02:57]} 13. Re2 {[%clk 0:03:02]}  Nc5 {[%clk 0:02:55]} 14. d3 {[%clk 0:03:00]}  Ne6 {[%clk 0:02:48]} 15. Rec2 {[%clk 0:02:59]}  Qd7 {[%clk 0:02:30]} 16. Ne2 {[%clk 0:02:56]}  Qe7 {[%clk 0:02:10]} 17. Ned4 {[%clk 0:02:54]}  Nxd4 {[%clk 0:02:10]} 18. Nxd4 {[%clk 0:02:54]}  Qd7 {[%clk 0:01:41]} 19. Nc6 {[%clk 0:02:36]}  Qf5 {[%clk 0:01:22]} 20. Qf3 {[%clk 0:02:30]}  Qxd3 {[%clk 0:00:48]} 21. Bxf6 {[%clk 0:02:06]}  gxf6 {[%clk 0:00:49]} 22. Qxf6 {[%clk 0:02:06]}  Re6 {[%clk 0:00:30]} 23. Qd4 {[%clk 0:01:51]}  Qxd4 {[%clk 0:00:22]} 24. Nxd4 {[%clk 0:01:52]}  Rf6 {[%clk 0:00:22]} 25. Nc6 {[%clk 0:01:48]}  Ba3 {[%clk 0:00:22]} 26. Bxd5 {[%clk 0:01:39]}  Bxc1 {[%clk 0:00:22]} 27. Ne7+ {[%clk 0:01:33]}  Kf8 {[%clk 0:00:22]} 28. Bxb7 {[%clk 0:01:33]}  Rb8 {[%clk 0:00:22]} 29. Rxc7 {[%clk 0:01:20]}  Ba3 {[%clk 0:00:18]} 30. Nc6 {[%clk 0:01:14]}  Rxb7 {[%clk 0:00:13]} 31. Rxb7 {[%clk 0:01:01]}  Rxc6 {[%clk 0:00:13]} 32. Rd7 {[%clk 0:00:47]}  Rc2 {[%clk 0:00:10]} 33. Rb7 {[%clk 0:00:47]}  Bc5 {[%clk 0:00:10]} 34. b4 {[%clk 0:00:47]}  Bxb4 {[%clk 0:00:10]} 35. Rxb6 {[%clk 0:00:47]}  a5 {[%clk 0:00:11]} 36. a4 {[%clk 0:00:40]}  Kg7 {[%clk 0:00:10]} 37. Rb7 {[%clk 0:00:32]}  Be1 {[%clk 0:00:09]} 38. Rb5 {[%clk 0:00:27]}  Bxf2+ {[%clk 0:00:09]} 39. Kf1 {[%clk 0:00:27]}  Bxe3 {[%clk 0:00:10]} 40. Rxa5 {[%clk 0:00:27]}  Rxh2 {[%clk 0:00:10]} 41. Re5 {[%clk 0:00:28]}  Bd4 {[%clk 0:00:09]} 42. Rd5 {[%clk 0:00:28]}  Bc3 {[%clk 0:00:09]} 43. Rc5 {[%clk 0:00:27]}  Bf6 {[%clk 0:00:09]} 44. Rc4 {[%clk 0:00:24]}  Ra2 {[%clk 0:00:09]} 45. Kg1 {[%clk 0:00:25]}  h5 {[%clk 0:00:09]} 46. Kf1 {[%clk 0:00:25]}  Kg6 {[%clk 0:00:10]} 47. Kg1 {[%clk 0:00:25]}  Be5 {[%clk 0:00:10]} 48. g4 {[%clk 0:00:24]}  h4 {[%clk 0:00:10]} 0-1


[Site "https://www.chess.com"]

[Event "Titled Tuesday Blitz February 07 Early 2023"]
[White "Alex_Sahakyan2006"]
[Black "Kamsky, Gata"]
[BlackFideId "2000024"]
[WhiteElo "2712"]
[BlackElo "2665"]
[Result "1/2-1/2"]
[Round "10"]
[TimeControl "180+2"]
[Date "2023.02.07"]
[WhiteClock "0:00:13"]
[BlackClock "0:00:16"]

1. e4 {[%clk 0:03:00]}  g6 {[%clk 0:02:58]} 2. d4 {[%clk 0:02:57]}  d6 {[%clk 0:02:56]} 3. Nf3 {[%clk 0:02:52]}  Bg7 {[%clk 0:02:55]} 4. Bc4 {[%clk 0:02:52]}  e6 {[%clk 0:02:53]} 5. O-O {[%clk 0:02:48]}  a6 {[%clk 0:02:53]} 6. a4 {[%clk 0:02:48]}  b6 {[%clk 0:02:52]} 7. c3 {[%clk 0:02:47]}  Bb7 {[%clk 0:02:51]} 8. Re1 {[%clk 0:02:46]}  Nd7 {[%clk 0:02:49]} 9. Na3 {[%clk 0:02:33]}  Ne7 {[%clk 0:02:46]} 10. Nc2 {[%clk 0:02:32]}  O-O {[%clk 0:02:44]} 11. Bd3 {[%clk 0:02:24]}  c5 {[%clk 0:02:41]} 12. h3 {[%clk 0:02:13]}  cxd4 {[%clk 0:02:36]} 13. cxd4 {[%clk 0:02:14]}  Rc8 {[%clk 0:02:33]} 14. Qe2 {[%clk 0:02:10]}  Rc7 {[%clk 0:02:28]} 15. Bf4 {[%clk 0:02:07]}  e5 {[%clk 0:02:24]} 16. Bg3 {[%clk 0:02:00]}  Qa8 {[%clk 0:02:21]} 17. Na3 {[%clk 0:01:43]}  Re8 {[%clk 0:01:49]} 18. Nc4 {[%clk 0:01:38]}  Nc8 {[%clk 0:01:49]} 19. dxe5 {[%clk 0:01:34]}  Nxe5 {[%clk 0:01:39]} 20. Nfxe5 {[%clk 0:01:28]}  dxe5 {[%clk 0:01:39]} 21. a5 {[%clk 0:01:23]}  bxa5 {[%clk 0:01:14]} 22. Nxa5 {[%clk 0:01:21]}  Qb8 {[%clk 0:01:13]} 23. Rec1 {[%clk 0:01:02]}  Rxc1+ {[%clk 0:00:58]} 24. Rxc1 {[%clk 0:01:03]}  Nd6 {[%clk 0:00:55]} 25. f3 {[%clk 0:00:53]}  Bc8 {[%clk 0:00:50]} 26. Bf2 {[%clk 0:00:48]}  Nb5 {[%clk 0:00:49]} 27. Bxb5 {[%clk 0:00:32]}  axb5 {[%clk 0:00:43]} 28. b4 {[%clk 0:00:30]}  Bf8 {[%clk 0:00:36]} 29. Bc5 {[%clk 0:00:30]}  Bh6 {[%clk 0:00:35]} 30. Be3 {[%clk 0:00:29]}  Bf8 {[%clk 0:00:34]} 31. Rd1 {[%clk 0:00:24]}  Be6 {[%clk 0:00:26]} 32. Qf2 {[%clk 0:00:17]}  Rd8 {[%clk 0:00:20]} 33. Rxd8 {[%clk 0:00:18]}  Qxd8 {[%clk 0:00:20]} 34. Bc5 {[%clk 0:00:18]}  Bh6 {[%clk 0:00:19]} 35. Be3 {[%clk 0:00:16]}  Bf8 {[%clk 0:00:18]} 36. Bc5 {[%clk 0:00:16]}  Bh6 {[%clk 0:00:18]} 37. Be3 {[%clk 0:00:13]}  Bf8 {[%clk 0:00:16]} 1/2-1/2


[Site "https://www.chess.com"]

[Event "Titled Tuesday Blitz February 07 Early 2023"]
[White "Szpar, Milosz"]
[Black "Zemlyanskii, Ivan"]
[WhiteFideId "1184989"]
[BlackFideId "24249971"]
[WhiteElo "2447"]
[BlackElo "2300"]
[Result "1/2-1/2"]
[Round "10"]
[TimeControl "180+2"]
[Date "2023.02.07"]
[WhiteClock "0:00:10"]
[BlackClock "0:00:12"]

1. e4 {[%clk 0:03:00]}  Nc6 {[%clk 0:02:58]} 2. Nf3 {[%clk 0:02:58]}  d5 {[%clk 0:02:55]} 3. exd5 {[%clk 0:02:57]}  Qxd5 {[%clk 0:02:56]} 4. Nc3 {[%clk 0:02:57]}  Qd6 {[%clk 0:02:57]} 5. g3 {[%clk 0:02:55]}  Nf6 {[%clk 0:02:56]} 6. Bg2 {[%clk 0:02:55]}  Bf5 {[%clk 0:02:43]} 7. O-O {[%clk 0:02:53]}  e6 {[%clk 0:02:39]} 8. d4 {[%clk 0:02:43]}  Be7 {[%clk 0:02:26]} 9. Bf4 {[%clk 0:02:35]}  Qd8 {[%clk 0:02:25]} 10. Ne5 {[%clk 0:02:25]}  Nd5 {[%clk 0:02:23]} 11. Nxd5 {[%clk 0:02:16]}  exd5 {[%clk 0:02:23]} 12. Qh5 {[%clk 0:01:51]}  Be6 {[%clk 0:02:21]} 13. Nxc6 {[%clk 0:01:47]}  bxc6 {[%clk 0:02:22]} 14. Qe5 {[%clk 0:01:42]}  Bf6 {[%clk 0:02:20]} 15. Qe3 {[%clk 0:01:39]}  O-O {[%clk 0:02:18]} 16. c3 {[%clk 0:01:32]}  Qd7 {[%clk 0:02:15]} 17. Rfe1 {[%clk 0:01:27]}  h6 {[%clk 0:02:13]} 18. Be5 {[%clk 0:01:26]}  Be7 {[%clk 0:02:06]} 19. Qd3 {[%clk 0:01:17]}  Bd6 {[%clk 0:02:03]} 20. Re3 {[%clk 0:01:06]}  Rfe8 {[%clk 0:01:53]} 21. Rae1 {[%clk 0:01:05]}  Bf5 {[%clk 0:01:49]} 22. Qe2 {[%clk 0:01:00]}  Re6 {[%clk 0:01:40]} 23. Qh5 {[%clk 0:00:57]}  Re7 {[%clk 0:01:30]} 24. Qh4 {[%clk 0:00:42]}  Rae8 {[%clk 0:01:25]} 25. Qf4 {[%clk 0:00:29]}  Bg6 {[%clk 0:01:15]} 26. h4 {[%clk 0:00:28]}  f6 {[%clk 0:01:04]} 27. Bxd6 {[%clk 0:00:29]}  cxd6 {[%clk 0:01:04]} 28. Kh2 {[%clk 0:00:20]}  Rxe3 {[%clk 0:01:00]} 29. Rxe3 {[%clk 0:00:19]}  Rxe3 {[%clk 0:00:56]} 30. Qxe3 {[%clk 0:00:19]}  Bf5 {[%clk 0:00:53]} 31. Bf1 {[%clk 0:00:18]}  Qe6 {[%clk 0:00:43]} 32. Qxe6+ {[%clk 0:00:17]}  Bxe6 {[%clk 0:00:44]} 33. b4 {[%clk 0:00:17]}  Kf7 {[%clk 0:00:41]} 34. Kg2 {[%clk 0:00:16]}  g5 {[%clk 0:00:37]} 35. Kf3 {[%clk 0:00:15]}  Bf5 {[%clk 0:00:35]} 36. Ke3 {[%clk 0:00:15]}  Ke7 {[%clk 0:00:35]} 37. a4 {[%clk 0:00:15]}  Kd7 {[%clk 0:00:33]} 38. a5 {[%clk 0:00:14]}  Bg4 {[%clk 0:00:33]} 39. Bd3 {[%clk 0:00:14]}  Be6 {[%clk 0:00:32]} 40. f4 {[%clk 0:00:13]}  Ke7 {[%clk 0:00:32]} 41. Kd2 {[%clk 0:00:10]}  Bd7 {[%clk 0:00:26]} 42. Ke3 {[%clk 0:00:10]}  Kf7 {[%clk 0:00:25]} 43. Kf3 {[%clk 0:00:10]}  Ke7 {[%clk 0:00:23]} 44. Ba6 {[%clk 0:00:10]}  Kf7 {[%clk 0:00:22]} 45. Bb7 {[%clk 0:00:10]}  Ke7 {[%clk 0:00:19]} 46. Ba6 {[%clk 0:00:09]}  Kf7 {[%clk 0:00:19]} 47. Bf1 {[%clk 0:00:10]}  Ke7 {[%clk 0:00:20]} 48. Ke3 {[%clk 0:00:10]}  Kf7 {[%clk 0:00:20]} 49. Be2 {[%clk 0:00:10]}  Ke7 {[%clk 0:00:21]} 50. Bf3 {[%clk 0:00:11]}  Be6 {[%clk 0:00:16]} 51. hxg5 {[%clk 0:00:08]}  hxg5 {[%clk 0:00:16]} 52. Be2 {[%clk 0:00:08]}  Bd7 {[%clk 0:00:16]} 53. Bd3 {[%clk 0:00:08]}  Be6 {[%clk 0:00:17]} 54. Kf3 {[%clk 0:00:09]}  Bd7 {[%clk 0:00:17]} 55. Bc2 {[%clk 0:00:08]}  Kf7 {[%clk 0:00:14]} 56. Ba4 {[%clk 0:00:07]}  Ke7 {[%clk 0:00:14]} 57. Bc2 {[%clk 0:00:07]}  Kf7 {[%clk 0:00:14]} 58. f5 {[%clk 0:00:05]}  Kg7 {[%clk 0:00:11]} 59. g4 {[%clk 0:00:05]}  Kf7 {[%clk 0:00:12]} 60. Bd3 {[%clk 0:00:05]}  Ke7 {[%clk 0:00:12]} 61. Ke3 {[%clk 0:00:06]}  Kd8 {[%clk 0:00:13]} 62. Kd2 {[%clk 0:00:06]}  Kc7 {[%clk 0:00:13]} 63. Kc2 {[%clk 0:00:06]}  Be8 {[%clk 0:00:14]} 64. Kb3 {[%clk 0:00:07]}  Bf7 {[%clk 0:00:11]} 65. Ka4 {[%clk 0:00:07]}  Be8 {[%clk 0:00:11]} 66. Kb3 {[%clk 0:00:06]}  Bf7 {[%clk 0:00:11]} 67. Ka3 {[%clk 0:00:06]}  Be8 {[%clk 0:00:11]} 68. Be2 {[%clk 0:00:07]}  Bf7 {[%clk 0:00:12]} 69. Bf1 {[%clk 0:00:07]}  Be8 {[%clk 0:00:13]} 70. Be2 {[%clk 0:00:07]}  Bf7 {[%clk 0:00:10]} 71. Bf3 {[%clk 0:00:08]}  Bg8 {[%clk 0:00:09]} 72. Ka4 {[%clk 0:00:08]}  a6 {[%clk 0:00:08]} 73. Be2 {[%clk 0:00:08]}  Kb7 {[%clk 0:00:09]} 74. Kb3 {[%clk 0:00:08]}  Bf7 {[%clk 0:00:10]} 75. Kc2 {[%clk 0:00:08]}  Bg8 {[%clk 0:00:10]} 76. Bd3 {[%clk 0:00:09]}  Bf7 {[%clk 0:00:10]} 77. Be2 {[%clk 0:00:09]}  Bg8 {[%clk 0:00:11]} 78. Bd3 {[%clk 0:00:09]}  Bf7 {[%clk 0:00:12]} 79. Be2 {[%clk 0:00:10]} 1/2-1/2


[Site "https://www.chess.com"]

[Event "Titled Tuesday Blitz February 07 Early 2023"]
[White "Gjestemoen-VonHirsch, Andre"]
[Black "Zahid, Sanatan"]
[WhiteFideId "1539531"]
[BlackFideId "10201963"]
[WhiteElo "2314"]
[BlackElo "1930"]
[Result "1-0"]
[Round "10"]
[TimeControl "180+2"]
[Date "2023.02.07"]
[WhiteClock "0:00:30"]
[BlackClock "0:00:24"]

1. d4 {[%clk 0:03:00]}  Nf6 {[%clk 0:02:52]} 2. Bf4 {[%clk 0:03:00]}  g6 {[%clk 0:02:43]} 3. Nc3 {[%clk 0:03:00]}  d5 {[%clk 0:02:43]} 4. e3 {[%clk 0:02:59]}  c6 {[%clk 0:02:42]} 5. h4 {[%clk 0:02:53]}  h5 {[%clk 0:02:41]} 6. Be2 {[%clk 0:02:53]}  Bg7 {[%clk 0:02:41]} 7. Nf3 {[%clk 0:02:52]}  Bg4 {[%clk 0:02:41]} 8. Ne5 {[%clk 0:02:46]}  Bxe2 {[%clk 0:02:39]} 9. Qxe2 {[%clk 0:02:46]}  Nbd7 {[%clk 0:02:40]} 10. O-O-O {[%clk 0:02:38]}  Qa5 {[%clk 0:02:32]} 11. Kb1 {[%clk 0:02:36]}  Qb6 {[%clk 0:02:22]} 12. f3 {[%clk 0:02:23]}  Bh6 {[%clk 0:02:08]} 13. Bxh6 {[%clk 0:02:15]}  Rxh6 {[%clk 0:02:08]} 14. e4 {[%clk 0:02:15]}  dxe4 {[%clk 0:01:58]} 15. Nxe4 {[%clk 0:01:40]}  Nxe4 {[%clk 0:01:36]} 16. Qxe4 {[%clk 0:01:41]}  Nxe5 {[%clk 0:01:29]} 17. dxe5 {[%clk 0:01:35]}  Rd8 {[%clk 0:01:26]} 18. e6 {[%clk 0:01:29]}  f6 {[%clk 0:01:18]} 19. Rxd8+ {[%clk 0:01:16]}  Qxd8 {[%clk 0:01:15]} 20. Qe3 {[%clk 0:01:17]}  Rh7 {[%clk 0:01:12]} 21. Qxa7 {[%clk 0:01:16]}  Qc8 {[%clk 0:01:12]} 22. Qe3 {[%clk 0:01:12]}  Qd8 {[%clk 0:01:05]} 23. Qe2 {[%clk 0:01:06]}  Kf8 {[%clk 0:00:42]} 24. Rd1 {[%clk 0:01:07]}  Qb6 {[%clk 0:00:42]} 25. b3 {[%clk 0:00:55]}  Kg7 {[%clk 0:00:40]} 26. Rd7 {[%clk 0:00:53]}  Kh6 {[%clk 0:00:34]} 27. Qd2+ {[%clk 0:00:53]}  g5 {[%clk 0:00:33]} 28. Kb2 {[%clk 0:00:38]}  Rg7 {[%clk 0:00:32]} 29. g4 {[%clk 0:00:32]}  Qc5 {[%clk 0:00:22]} 30. hxg5+ {[%clk 0:00:29]}  fxg5 {[%clk 0:00:21]} 31. gxh5 {[%clk 0:00:27]}  Qe5+ {[%clk 0:00:22]} 32. Qc3 {[%clk 0:00:25]}  Qxe6 {[%clk 0:00:21]} 33. Rxb7 {[%clk 0:00:22]}  Rf7 {[%clk 0:00:19]} 34. a4 {[%clk 0:00:23]}  Kxh5 {[%clk 0:00:18]} 35. a5 {[%clk 0:00:22]}  c5 {[%clk 0:00:18]} 36. Rb6 {[%clk 0:00:23]}  Qd5 {[%clk 0:00:17]} 37. Rb5 {[%clk 0:00:18]}  Rxf3 {[%clk 0:00:17]} 38. Rxc5 {[%clk 0:00:18]}  Qe4 {[%clk 0:00:16]} 39. Qh8+ {[%clk 0:00:18]}  Kg4 {[%clk 0:00:16]} 40. Qc8+ {[%clk 0:00:18]}  e6 {[%clk 0:00:16]} 41. Rc4 {[%clk 0:00:18]}  Qxc4 {[%clk 0:00:12]} 42. Qxc4+ {[%clk 0:00:19]}  Kg3 {[%clk 0:00:13]} 43. Qxe6 {[%clk 0:00:18]}  g4 {[%clk 0:00:14]} 44. Qe5+ {[%clk 0:00:18]}  Kg2 {[%clk 0:00:14]} 45. a6 {[%clk 0:00:19]}  Rf7 {[%clk 0:00:14]} 46. Qd5+ {[%clk 0:00:18]}  Rf3 {[%clk 0:00:14]} 47. a7 {[%clk 0:00:18]}  Kh2 {[%clk 0:00:14]} 48. Qxf3 {[%clk 0:00:18]}  gxf3 {[%clk 0:00:13]} 49. a8=Q {[%clk 0:00:19]}  f2 {[%clk 0:00:14]} 50. Qf8 {[%clk 0:00:19]}  f1=Q {[%clk 0:00:14]} 51. Qxf1 {[%clk 0:00:20]}  Kg3 {[%clk 0:00:15]} 52. b4 {[%clk 0:00:21]}  Kh2 {[%clk 0:00:16]} 53. b5 {[%clk 0:00:21]}  Kg3 {[%clk 0:00:17]} 54. b6 {[%clk 0:00:22]}  Kh4 {[%clk 0:00:17]} 55. b7 {[%clk 0:00:23]}  Kg5 {[%clk 0:00:18]} 56. Qf3 {[%clk 0:00:23]}  Kh4 {[%clk 0:00:19]} 57. c4 {[%clk 0:00:24]}  Kg5 {[%clk 0:00:20]} 58. c5 {[%clk 0:00:25]}  Kg6 {[%clk 0:00:21]} 59. c6 {[%clk 0:00:26]}  Kg7 {[%clk 0:00:22]} 60. Kc3 {[%clk 0:00:26]}  Kg6 {[%clk 0:00:23]} 61. Kd4 {[%clk 0:00:27]}  Kh6 {[%clk 0:00:24]} 62. Ke5 {[%clk 0:00:28]}  Kg7 {[%clk 0:00:24]} 63. Qg4+ {[%clk 0:00:29]}  Kf7 {[%clk 0:00:25]} 64. Qe6+ {[%clk 0:00:29]}  Kf8 {[%clk 0:00:25]} 65. Qd7 {[%clk 0:00:29]}  Kg8 {[%clk 0:00:24]} 66. b8=Q# {[%clk 0:00:30]} 1-0


[Site "https://www.chess.com"]

[Event "Titled Tuesday Blitz February 07 Early 2023"]
[White "Kollars, Dmitrij"]
[Black "Vakhlamov, Igor L."]
[WhiteFideId "12909572"]
[BlackFideId "24126748"]
[WhiteElo "2607"]
[BlackElo "2413"]
[Result "0-1"]
[Round "10"]
[TimeControl "180+2"]
[Date "2023.02.07"]
[WhiteClock "0:00:06"]
[BlackClock "0:00:09"]

1. c4 {[%clk 0:03:00]}  e6 {[%clk 0:02:54]} 2. d4 {[%clk 0:03:00]}  d5 {[%clk 0:02:54]} 3. Nc3 {[%clk 0:03:00]}  c5 {[%clk 0:02:54]} 4. cxd5 {[%clk 0:02:59]}  cxd4 {[%clk 0:02:54]} 5. Qa4+ {[%clk 0:02:53]}  Bd7 {[%clk 0:02:54]} 6. Qxd4 {[%clk 0:02:53]}  exd5 {[%clk 0:02:55]} 7. Nf3 {[%clk 0:02:52]}  Nf6 {[%clk 0:02:55]} 8. Bg5 {[%clk 0:02:50]}  Be7 {[%clk 0:02:55]} 9. e3 {[%clk 0:02:51]}  Nc6 {[%clk 0:02:54]} 10. Qd3 {[%clk 0:02:51]}  O-O {[%clk 0:02:51]} 11. Be2 {[%clk 0:02:50]}  h6 {[%clk 0:02:51]} 12. Bh4 {[%clk 0:02:48]}  Be6 {[%clk 0:02:51]} 13. O-O {[%clk 0:02:47]}  Qb6 {[%clk 0:02:51]} 14. Qb5 {[%clk 0:02:47]}  Rfd8 {[%clk 0:02:40]} 15. Rfd1 {[%clk 0:02:45]}  Rac8 {[%clk 0:02:35]} 16. Qxb6 {[%clk 0:02:39]}  axb6 {[%clk 0:02:36]} 17. Rac1 {[%clk 0:02:38]}  g5 {[%clk 0:02:35]} 18. Bg3 {[%clk 0:02:37]}  Ne4 {[%clk 0:02:35]} 19. Na4 {[%clk 0:02:24]}  Bc5 {[%clk 0:01:31]} 20. Be5 {[%clk 0:01:31]}  g4 {[%clk 0:01:28]} 21. Bf4 {[%clk 0:01:21]}  gxf3 {[%clk 0:01:26]} 22. gxf3 {[%clk 0:01:22]}  Ng5 {[%clk 0:01:25]} 23. Kg2 {[%clk 0:01:17]}  d4 {[%clk 0:01:23]} 24. h4 {[%clk 0:01:11]}  Nh7 {[%clk 0:01:16]} 25. Nxc5 {[%clk 0:01:06]}  bxc5 {[%clk 0:01:16]} 26. Rxc5 {[%clk 0:01:07]}  dxe3 {[%clk 0:01:14]} 27. fxe3 {[%clk 0:01:01]}  Bxa2 {[%clk 0:01:12]} 28. Bxh6 {[%clk 0:00:56]}  Rxd1 {[%clk 0:01:12]} 29. Bxd1 {[%clk 0:00:57]}  Rd8 {[%clk 0:01:12]} 30. Bc2 {[%clk 0:00:54]}  Nb4 {[%clk 0:00:47]} 31. Bf5 {[%clk 0:00:51]}  Be6 {[%clk 0:00:42]} 32. Be4 {[%clk 0:00:47]}  Nd5 {[%clk 0:00:38]} 33. Rb5 {[%clk 0:00:42]}  Rd7 {[%clk 0:00:37]} 34. Bb1 {[%clk 0:00:35]}  f6 {[%clk 0:00:31]} 35. Kg3 {[%clk 0:00:26]}  Nf8 {[%clk 0:00:31]} 36. e4 {[%clk 0:00:21]}  Ne7 {[%clk 0:00:18]} 37. Rb6 {[%clk 0:00:20]}  Nc6 {[%clk 0:00:18]} 38. b4 {[%clk 0:00:20]}  Rh7 {[%clk 0:00:12]} 39. Be3 {[%clk 0:00:17]}  Rg7+ {[%clk 0:00:12]} 40. Kf2 {[%clk 0:00:17]}  Ne5 {[%clk 0:00:11]} 41. Bd4 {[%clk 0:00:12]}  Rd7 {[%clk 0:00:10]} 42. Be3 {[%clk 0:00:10]}  Nc4 {[%clk 0:00:07]} 43. Rb5 {[%clk 0:00:08]}  Na3 {[%clk 0:00:08]} 44. Rc5 {[%clk 0:00:05]}  Nxb1 {[%clk 0:00:08]} 45. Bc1 {[%clk 0:00:06]}  Kf7 {[%clk 0:00:06]} 46. Ke3 {[%clk 0:00:06]}  b6 {[%clk 0:00:06]} 47. Rc2 {[%clk 0:00:06]}  Ra7 {[%clk 0:00:06]} 48. h5 {[%clk 0:00:06]}  Na3 {[%clk 0:00:06]} 49. Rc6 {[%clk 0:00:04]}  Nc4+ {[%clk 0:00:06]} 50. Kf4 {[%clk 0:00:04]}  b5 {[%clk 0:00:07]} 51. Rc5 {[%clk 0:00:04]}  Rb7 {[%clk 0:00:07]} 52. Kg3 {[%clk 0:00:04]}  Ne5 {[%clk 0:00:06]} 53. f4 {[%clk 0:00:04]}  Nd3 {[%clk 0:00:07]} 54. Rc3 {[%clk 0:00:04]}  Nxc1 {[%clk 0:00:07]} 55. Rxc1 {[%clk 0:00:05]}  Kg7 {[%clk 0:00:07]} 56. f5 {[%clk 0:00:05]}  Bc4 {[%clk 0:00:08]} 57. Kf4 {[%clk 0:00:05]}  Kh6 {[%clk 0:00:08]} 58. Rg1 {[%clk 0:00:06]}  Bf7 {[%clk 0:00:07]} 59. Rd1 {[%clk 0:00:06]}  Rd7 {[%clk 0:00:07]} 60. Rc1 {[%clk 0:00:05]}  Rd4 {[%clk 0:00:08]} 61. Rc6 {[%clk 0:00:05]}  Kg7 {[%clk 0:00:08]} 62. h6+ {[%clk 0:00:05]}  Kxh6 {[%clk 0:00:08]} 63. Rxf6+ {[%clk 0:00:06]}  Kg7 {[%clk 0:00:09]} 64. Rb6 {[%clk 0:00:06]}  Rxb4 {[%clk 0:00:09]} 65. Rb7 {[%clk 0:00:06]}  Kg8 {[%clk 0:00:09]} 66. Ke5 {[%clk 0:00:05]}  Nh7 {[%clk 0:00:06]} 67. Rb6 {[%clk 0:00:03]}  Ng5 {[%clk 0:00:06]} 68. Kf4 {[%clk 0:00:01]}  Nxe4 {[%clk 0:00:06]} 69. Ke5 {[%clk 0:00:02]}  Nc5 {[%clk 0:00:05]} 70. Rb8+ {[%clk 0:00:01]}  Kg7 {[%clk 0:00:06]} 71. Rc8 {[%clk 0:00:02]}  Nd7+ {[%clk 0:00:06]} 72. Kd6 {[%clk 0:00:03]}  Nf6 {[%clk 0:00:07]} 73. Rb8 {[%clk 0:00:03]}  Rd4+ {[%clk 0:00:07]} 74. Ke5 {[%clk 0:00:03]}  Rd5+ {[%clk 0:00:07]} 75. Kf4 {[%clk 0:00:04]}  Nh5+ {[%clk 0:00:07]} 76. Ke4 {[%clk 0:00:04]}  Nf6+ {[%clk 0:00:07]} 77. Kf4 {[%clk 0:00:05]}  Rc5 {[%clk 0:00:08]} 78. Rb6 {[%clk 0:00:05]}  Rc4+ {[%clk 0:00:08]} 79. Ke3 {[%clk 0:00:04]}  b4 {[%clk 0:00:08]} 80. Kd3 {[%clk 0:00:04]}  Rf4 {[%clk 0:00:08]} 81. Ke3 {[%clk 0:00:04]}  Rh4 {[%clk 0:00:08]} 82. Kd3 {[%clk 0:00:05]}  b3 {[%clk 0:00:09]} 83. Kc3 {[%clk 0:00:05]}  Rf4 {[%clk 0:00:09]} 84. Kb2 {[%clk 0:00:06]}  Rxf5 {[%clk 0:00:09]} 85. Rb4 {[%clk 0:00:06]}  Rf2+ {[%clk 0:00:09]} 86. Ka3 {[%clk 0:00:06]}  Ra2# {[%clk 0:00:09]} 0-1


[Site "https://www.chess.com"]